bitfinex/quotes_ETHUSD_20240630
["timestamp","ask_amount","ask_price","bid_price","bid_amount"]
[1719762481800,0.849,3405.3,3405.0,2.3485]
[1719762481974,0.849,3405.3,3405.0,2.4072298]
[1719762483323,0.849,3405.3,3405.0,2.3485]
[1719762483616,7.33,3405.6,3404.9,0.24072367]
[1719762483617,0.849,3405.1,3404.9,0.24072367]
[1719762483856,0.849,3405.1,3405.0,0.21446814]
[1719762484016,0.849,3405.1,3405.0,0.49483732]
[1719762491979,0.849,3405.1,3405.0,0.21446814]
[1719762492180,0.849,3405.1,3404.6,2.4339]
[1719762492380,0.849,3404.9,3404.7,0.21448264]
[1719762492815,0.849,3404.9,3404.7,0.27321783]
[1719762494103,0.849,3404.9,3404.7,0.21448264]
[1719762494319,0.849,3404.9,3404.8,0.26483826]
[1719762494685,0.849,3404.9,3404.8,0.4793155]
[1719762494899,2.4573,3405.5,3404.8,0.4793155]
[1719762495107,0.849,3405.1,3404.8,0.4793155]
[1719762495310,0.849,3404.9,3404.8,0.26483826]
[1719762495513,2.4573,3405.5,3404.8,0.26483826]
[1719762495728,0.849,3405.0,3404.8,0.26483826]
[1719762496018,0.849,3405.0,3404.9,0.27574735]
[1719762497708,0.849,3405.0,3404.9,0.49021919]
[1719762500403,0.849,3405.0,3404.9,0.21447184]
[1719762500624,0.849,3405.0,3404.6,2.4339]
[1719762500787,0.849,3404.8,3404.7,0.21448264]
[1719762505550,0.849,3404.8,3403.8,3.42821]
[1719762505697,0.849,3404.1,3403.9,0.38244838]
[1719762505899,0.849,3404.1,3403.9,0.59700155]
[1719762506527,0.849,3404.1,3404.0,0.55]
[1719762506899,0.849,3404.1,3404.0,0.76461097]
[1719762508556,0.849,3404.1,3404.0,0.21461097]
[1719762510138,2.3691,3404.4,3404.0,0.21461097]
[1719762512572,0.849,3404.1,3404.0,0.21461097]
[1719762513076,0.849,3404.1,3404.0,0.21463659]
[1719762513369,0.849,3404.1,3403.6,2.256]
[1719762513552,0.849,3404.1,3404.0,0.21463659]
[1719762513879,2.3691,3404.4,3404.0,0.21463659]
[1719762514021,0.849,3404.2,3403.7,0.3432815]
[1719762514224,0.849,3404.2,3403.8,0.2146474]
[1719762514535,0.849,3404.2,3403.7,0.3432815]
[1719762514740,0.849,3404.2,3403.9,0.214642]
[1719762514983,0.849,3404.2,3403.8,0.47457555]
[1719762515190,0.849,3404.2,3404.0,0.21463659]
[1719762515390,0.849,3404.2,3403.9,0.214642]
[1719762515567,0.849,3404.2,3404.1,0.21463119]
[1719762515772,0.849,3404.2,3404.0,0.21463659]
[1719762515974,0.849,3404.2,3404.1,0.21463119]
[1719762516300,0.849,3404.2,3403.8,0.25992815]
[1719762516594,0.849,3404.2,3404.1,0.21460453]
[1719762516741,0.849,3404.2,3403.7,0.3432815]
[1719762517102,3.2181,3404.4,3403.7,0.3432815]
[1719762517390,3.2181,3404.4,3403.8,0.21462073]
[1719762517543,3.2181,3404.4,3403.9,0.28139022]
[1719762517974,3.2181,3404.4,3404.0,0.21460993]
[1719762523458,0.849,3404.2,3404.0,0.21460993]
[1719762524174,0.849,3404.2,3404.1,0.343282]
[1719762524563,0.849,3404.2,3404.1,0.55799756]
[1719762527185,0.849,3404.3,3404.1,0.55799756]
[1719762532484,2.4013,3404.6,3404.1,0.55799756]
[1719762532823,0.849,3404.5,3404.1,0.55799756]
[1719762533165,0.849,3404.3,3404.1,0.55799756]
[1719762533472,0.849,3404.5,3404.1,0.55799756]
[1719762538695,0.849,3404.3,3404.1,0.55799756]
[1719762543604,0.849,3404.3,3404.1,0.21471556]
[1719762543900,2.89255085,3404.2,3403.2,2.4738]
[1719762544101,0.849,3403.7,3403.3,0.3]
[1719762546511,0.849,3403.9,3403.3,0.3]
[1719762546807,0.849,3404.1,3403.5,2.4395]
[1719762546976,0.849,3404.1,3403.6,0.05875483]
[1719762547699,0.849,3404.1,3403.5,2.4395]
[1719762548075,0.849,3403.9,3403.5,2.4395]
[1719762554827,0.849,3403.9,3403.1,2.4572]
[1719762555010,0.849,3403.9,3403.2,0.55]
[1719762555217,0.849,3403.9,3403.2,0.75868126]
[1719762558995,0.849,3403.7,3403.2,0.75868126]
[1719762559297,0.849,3403.7,3403.2,0.64796679]
[1719762560997,0.849,3403.5,3403.2,0.64796679]
[1719762561201,0.849,3403.7,3403.2,0.64796679]
[1719762561406,0.849,3403.7,3403.3,0.31051668]
[1719762561721,2.2681,3403.8,3403.4,0.20876102]
[1719762561925,0.849,3403.6,3403.4,0.20876102]
[1719762562125,0.849,3403.6,3403.3,0.31051668]
[1719762562433,0.849,3403.6,3403.5,0.20875561]
[1719762563131,0.849,3403.6,3403.3,0.31051668]
[1719762563426,0.849,3403.6,3403.5,0.20875561]
[1719762563630,0.849,3403.6,3403.4,0.20876102]
[1719762563828,0.849,3403.6,3403.5,0.20875561]
[1719762564229,0.849,3403.6,3403.3,0.31051668]
[1719762564437,0.849,3403.6,3403.5,0.20875561]
[1719762564629,0.849,3403.6,3403.4,0.20876102]
[1719762564833,0.849,3403.6,3403.5,0.20875561]
[1719762565242,0.849,3403.6,3403.3,0.31051668]
[1719762565597,0.849,3403.6,3403.4,0.20876102]
[1719762567401,0.849,3403.6,3402.9,2.3222]
[1719762567714,0.849,3403.6,3403.0,0.53222]
[1719762567936,0.849,3403.6,3403.0,0.74102998]
[1719762569400,0.849,3403.4,3403.0,0.74102998]
[1719762570517,0.849,3403.4,3403.0,0.20880998]
[1719762571060,0.849,3403.2,3403.0,0.20880998]
[1719762571731,0.849,3403.2,3402.7,2.3222]
[1719762571951,0.849,3403.2,3403.1,0.20881654]
[1719762572109,2.3643,3403.5,3402.7,2.3222]
[1719762572307,0.849,3403.3,3402.8,0.44105276]
[1719762576642,0.849,3403.1,3402.8,0.44105276]
[1719762579429,0.849,3403.3,3402.8,0.44105276]
[1719762587531,4.85919361,3404.4,3402.9,2.4824]
[1719762587532,0.849,3403.6,3402.9,2.4824]
[1719762588031,0.849,3403.4,3403.0,0.20889205]
[1719762588361,4.85919361,3404.4,3403.0,0.50124326]
[1719762588362,0.849,3403.2,3403.0,0.50124326]
[1719762588566,0.849,3403.4,3403.0,0.20889205]
[1719762590269,0.849,3403.4,3402.7,2.4824]
[1719762590474,0.849,3403.4,3403.1,0.20888664]
[1719762590677,0.849,3403.4,3402.7,2.4824]
[1719762590863,0.849,3403.4,3403.2,0.20888124]
[1719762591063,0.849,3403.4,3402.7,2.4824]
[1719762591246,0.849,3403.4,3403.3,0.20887584]
[1719762591441,0.849,3403.4,3402.8,0.24824]
[1719762591637,0.849,3403.4,3403.3,0.20891003]
[1719762591846,0.849,3403.4,3402.8,0.24824]
[1719762592045,0.849,3403.4,3403.3,0.20891003]
[1719762592285,0.849,3403.4,3402.8,0.24824]
[1719762592493,2.3379,3403.6,3403.3,0.20891003]
[1719762592643,0.849,3403.4,3402.7,2.4824]
[1719762592977,0.849,3403.2,3402.7,2.4824]
[1719762599209,0.849,3403.8,3402.8,2.8568]
[1719762599404,0.849,3403.8,3402.9,2.67738]
[1719762599704,0.849,3403.6,3403.0,0.55]
[1719762600049,0.849,3403.6,3402.9,2.3068]
[1719762600250,0.849,3403.4,3402.9,2.53748]
[1719762601106,0.849,3403.4,3402.7,2.3068]
[1719762601278,0.849,3403.1,3402.7,2.3068]
[1719762602881,0.849,3403.1,3402.8,0.20895754]
[1719762603400,2.4837,3404.1,3402.9,0.20895213]
[1719762603548,0.849,3403.6,3403.0,2.36556436]
[1719762603877,0.849,3403.6,3403.0,2.57450254]
[1719762605979,0.849,3403.4,3403.0,2.51573818]
[1719762608213,2.4837,3403.6,3403.0,0.20893818]
[1719762608360,0.849,3403.1,3403.0,0.20893818]
[1719762608695,0.849,3403.1,3402.3,2.4916]
[1719762608851,0.24837,3403.5,3403.0,0.20891254]
[1719762609052,0.849,3403.1,3402.4,0.55]
[1719762609274,0.849,3402.9,3402.4,0.55]
[1719762609458,0.849,3402.9,3402.3,2.4916]
[1719762609658,0.849,3402.7,3402.4,0.366881]
[1719762609963,0.849,3402.7,3402.3,2.4916]
[1719762612456,0.849,3402.7,3402.0,0.05877698]
[1719762612660,0.849,3402.3,3401.4,2.4448]
[1719762612894,0.849,3402.3,3401.6,1.177426]
[1719762613956,0.849,3402.3,3401.8,2.4448]
[1719762614661,3.0,3403.0,3401.8,2.4448]
[1719762614993,0.849,3402.5,3401.8,2.4448]
[1719762616502,0.849,3402.7,3401.8,2.4448]
[1719762616703,0.849,3402.7,3401.9,1.32500533]
[1719762617792,3.0,3403.0,3402.1,2.4448]
[1719762617956,0.849,3402.7,3402.1,2.4448]
[1719762618162,0.849,3402.7,3402.2,0.39202201]
[1719762618374,0.849,3402.7,3402.3,0.20918123]
[1719762618572,0.849,3402.7,3402.2,0.39202201]
[1719762618795,0.849,3402.7,3402.4,0.20917583]
[1719762619093,0.849,3402.7,3402.3,0.20918123]
[1719762619307,0.849,3402.7,3402.5,0.20917042]
[1719762619462,0.849,3402.7,3402.4,0.20917583]
[1719762619778,0.849,3402.7,3402.5,0.20917042]
[1719762620002,0.849,3402.7,3401.8,2.4448]
[1719762620159,0.849,3402.5,3401.9,0.9672226]
[1719762620362,0.849,3402.5,3401.9,0.55]
[1719762621705,0.849,3402.3,3401.8,2.4448]
[1719762625114,0.849,3402.3,3401.5,2.4448]
[1719762625313,0.849,3402.1,3401.5,2.4448]
[1719762632879,3.1757,3402.1,3401.6,0.20931659]
[1719762633109,3.1757,3402.1,3401.3,2.4384]
[1719762633318,3.1757,3402.1,3401.4,0.24384]
[1719762633533,3.1757,3402.1,3401.4,0.20932741]
[1719762635944,2.3267,3402.1,3401.4,0.20932741]
[1719762639709,2.3267,3402.1,3401.3,0.849]
[1719762639932,2.3267,3402.1,3401.5,0.20939553]
[1719762640136,2.64427,3402.1,3401.4,0.20940094]
[1719762640304,2.64427,3402.1,3401.6,0.20939012]
[1719762640503,2.64427,3402.1,3401.3,0.849]
[1719762640736,2.64427,3402.1,3401.0,3.616036]
[1719762640737,2.3267,3402.5,3401.7,0.20938472]
[1719762640943,0.849,3402.4,3401.6,2.4384]
[1719762641319,0.849,3402.4,3401.7,0.20938472]
[1719762644564,3.1757,3402.5,3401.7,1.05838472]
[1719762645059,3.1757,3402.5,3401.7,0.849]
[1719762647215,2.3267,3402.5,3401.7,0.849]
[1719762647463,3.1757,3402.5,3401.7,0.849]
[1719762649673,3.1757,3402.5,3401.6,2.4384]
[1719762649820,3.79327,3402.5,3401.6,2.4384]
[1719762650032,3.79327,3402.5,3401.6,2.49718922]
[1719762651304,3.0,3402.6,3401.6,2.49718922]
[1719762651485,3.849,3402.5,3401.6,2.49718922]
[1719762651634,0.849,3402.5,3401.6,2.49718922]
[1719762651991,0.849,3402.5,3401.6,2.4384]
[1719762652283,0.849,3402.5,3401.6,2.76714]
[1719762652949,0.849,3402.5,3401.7,0.05878733]
[1719762656588,3.0,3402.7,3401.8,2.3547]
[1719762656803,1.25778063,3402.6,3401.8,2.41348578]
[1719762657016,0.26740583,3403.0,3401.9,0.05878579]
[1719762657181,7.33,3403.5,3402.4,2.3547]
[1719762657182,0.40851512,3403.4,3402.4,2.3547]
[1719762657368,0.849,3403.3,3402.4,2.3547]
[1719762657570,0.40851512,3403.2,3402.4,2.3547]
[1719762657891,0.40851512,3403.2,3402.5,0.20934317]
[1719762658300,0.849,3403.1,3402.5,0.20934317]
[1719762664707,3.1529,3403.1,3402.5,0.20934317]
[1719762664878,3.0,3403.5,3402.6,0.05877634]
[1719762665091,0.849,3403.6,3402.7,2.3547]
[1719762665282,0.849,3403.4,3402.7,2.3547]
[1719762666579,3.0,3403.6,3402.7,2.3547]
[1719762666580,3.849,3403.6,3402.7,2.3547]
[1719762667114,2.3538,3403.9,3402.9,3.2068]
[1719762667318,0.849,3403.8,3403.0,0.32655722]
[1719762667612,0.849,3403.8,3402.9,3.2068]
[1719762668385,3.0,3403.8,3403.1,2.3578]
[1719762668698,3.849,3403.9,3403.1,2.3578]
[1719762668913,3.0,3403.8,3403.1,2.3578]
[1719762669114,1.46928,3403.9,3403.2,0.20913772]
[1719762669316,1.46928,3403.9,3403.1,2.3578]
[1719762669831,0.849,3403.7,3403.0,0.05876549]
[1719762670142,0.849,3403.5,3402.8,2.3578]
[1719762670632,2.800728,3403.8,3402.8,2.3578]
[1719762670633,0.849,3403.3,3402.9,0.20915393]
[1719762671004,0.849,3403.3,3402.8,2.3578]
[1719762671327,0.849,3403.3,3402.9,0.20915393]
[1719762671747,0.849,3403.3,3402.8,2.3578]
[1719762671916,0.849,3403.3,3403.0,0.20914853]
[1719762672118,0.849,3403.3,3402.9,0.20915393]
[1719762672312,0.849,3403.3,3403.1,0.20914312]
[1719762672523,0.849,3403.3,3403.0,0.20914853]
[1719762672729,0.849,3403.3,3403.2,0.20913772]
[1719762672937,0.849,3403.3,3403.1,0.20914312]
[1719762673129,0.849,3403.3,3403.2,0.20913772]
[1719762673534,0.849,3403.3,3402.8,2.3578]
[1719762673707,2.3632,3403.6,3403.2,0.20913772]
[1719762673912,0.849,3403.3,3402.3,2.2942]
[1719762674123,0.849,3402.9,3402.3,2.2942]
[1719762674321,0.849,3402.9,3402.4,0.20847321]
[1719762682338,0.849,3402.9,3402.3,2.2942]
[1719762682664,0.849,3402.9,3402.4,0.20849712]
[1719762687433,2.3632,3403.2,3402.4,0.45876683]
[1719762687434,0.849,3403.1,3402.4,0.45876683]
[1719762687634,0.849,3403.1,3402.3,2.2942]
[1719762687873,0.849,3403.1,3402.4,5.8777]
[1719762688252,0.849,3403.1,3402.5,0.20861986]
[1719762694066,3.0,3403.4,3402.6,2.4974]
[1719762694393,3.0,3403.4,3402.7,6.82684969]
[1719762694594,3.0,3403.4,3402.7,7.03543823]
[1719762697459,3.849,3403.6,3402.7,7.03543823]
[1719762698383,0.40825365,3403.5,3402.7,7.03543823]
[1719762699189,0.849,3403.4,3402.7,7.03543823]
[1719762699375,3.0,3403.6,3402.8,1.03818382]
[1719762699715,0.849,3403.5,3402.9,0.20158655]
[1719762701000,3.0,3403.6,3402.9,0.20158655]
[1719762701215,1.25720965,3403.5,3403.0,2.2661]
[1719762701373,0.849,3403.5,3403.0,2.2661]
[1719762701563,0.849,3403.5,3403.1,0.20157574]
[1719762701765,0.40828007,3403.4,3403.1,0.20157574]
[1719762702595,1.25728007,3403.4,3403.1,0.20157574]
[1719762702794,0.849,3403.4,3403.1,0.20157574]
[1719762703589,0.40836541,3403.3,3403.1,0.20157574]
[1719762703762,0.849,3403.4,3403.1,0.20157574]
[1719762708304,0.4083354,3403.3,3403.1,0.20157574]
[1719762708509,0.849,3403.4,3403.1,0.20157574]
[1719762711701,3.0,3403.6,3403.1,0.5521617]
[1719762711906,0.40817825,3403.5,3403.1,0.5521617]
[1719762712109,3.40818928,3403.5,3403.1,0.5521617]
[1719762712403,3.0,3403.5,3403.1,0.5521617]
[1719762712571,3.849,3403.6,3403.1,0.5521617]
[1719762712900,0.4081803,3403.5,3403.1,0.5521617]
[1719762715795,3.849,3403.6,3403.1,0.5521617]
[1719762716028,0.40827694,3403.5,3403.1,0.5521617]
[1719762717653,0.849,3403.6,3403.3,2.2534]
[1719762717941,0.849,3403.7,3403.4,0.20158004]
[1719762718838,0.849,3403.7,3403.3,2.2534]
[1719762719195,0.849,3403.7,3403.4,0.20158004]
[1719762719535,0.849,3403.7,3403.3,2.2534]
[1719762720053,0.849,3403.7,3403.4,0.20158004]
[1719762720347,0.849,3403.7,3403.3,2.2534]
[1719762720711,0.849,3403.7,3403.4,0.20158004]
[1719762720911,0.849,3403.5,3403.4,0.20158004]
[1719762721315,0.849,3403.5,3403.1,2.60398596]
[1719762721544,0.849,3403.5,3403.4,0.20158004]
[1719762721713,0.849,3403.5,3403.2,0.2603986]
[1719762721940,0.849,3403.5,3403.4,0.20158004]
[1719762722253,0.849,3403.5,3403.3,0.20158545]
[1719762722400,0.849,3403.5,3403.4,0.20153391]
[1719762722849,0.849,3403.5,3403.2,0.2603986]
[1719762723133,3.0,3404.1,3403.3,0.25137986]
[1719762723444,0.849,3403.7,3403.3,0.45291917]
[1719762723620,0.849,3403.7,3403.4,2.2534]
[1719762723933,0.849,3403.7,3403.2,2.2534]
[1719762724424,0.40815536,3403.6,3403.3,0.20153931]
[1719762724630,0.849,3403.7,3403.3,0.20153931]
[1719762724796,0.849,3403.7,3403.2,2.2534]
[1719762725005,0.40815898,3403.6,3403.4,0.20153391]
[1719762725301,0.40816628,3403.6,3403.5,0.20152851]
[1719762725621,0.849,3403.7,3403.5,0.20152851]
[1719762725798,0.849,3403.7,3403.3,0.22534]
[1719762726195,0.849,3403.7,3403.4,0.20153391]
[1719762726609,0.849,3403.7,3403.3,0.22534]
[1719762726841,0.849,3403.7,3403.5,0.20152851]
[1719762727024,0.849,3403.7,3403.4,0.20153391]
[1719762727221,2.3188,3404.0,3403.6,0.20152311]
[1719762727425,0.849,3403.7,3402.9,2.95806494]
[1719762727626,0.849,3403.4,3402.9,2.95806494]
[1719762727840,0.849,3403.4,3403.0,1.08513202]
[1719762731635,2.3188,3403.6,3403.0,1.08513202]
[1719762731837,0.849,3403.4,3403.0,1.08513202]
[1719762732226,0.40832393,3403.3,3403.0,1.08513202]
[1719762732811,0.40832393,3403.4,3403.0,1.08513202]
[1719762732925,0.40832393,3403.4,3403.1,0.3345732]
[1719762733126,0.40832393,3403.4,3403.1,0.53612332]
[1719762734081,0.40832113,3403.4,3403.1,0.53612332]
[1719762734769,0.40831619,3403.4,3403.1,0.53612332]
[1719762736081,0.849,3403.5,3403.1,0.53612332]
[1719762736369,0.40831619,3403.4,3403.1,0.53612332]
[1719762737783,0.849,3403.5,3403.1,0.53612332]
[1719762737963,0.40831587,3403.4,3403.1,0.53612332]
[1719762739308,0.40831587,3403.4,3403.3,2.3675]
[1719762739467,0.40817399,3404.1,3403.3,2.42626091]
[1719762739827,1.25717399,3404.1,3403.5,2.3675]
[1719762739966,0.40817399,3404.0,3403.6,0.26278068]
[1719762740365,0.40817399,3404.0,3403.5,2.3675]
[1719762741006,0.40790202,3404.0,3403.5,2.3675]
[1719762741371,0.849,3404.1,3403.5,2.3675]
[1719762741569,0.40784609,3404.0,3403.5,2.3675]
[1719762743776,0.849,3403.9,3403.5,2.3675]
[1719762743988,0.40784609,3403.8,3403.5,2.3675]
[1719762744310,0.40801149,3403.8,3403.2,2.73552998]
[1719762744531,0.40801149,3403.8,3403.6,0.20141209]
[1719762744673,0.40801149,3403.8,3403.2,2.3675]
[1719762744881,0.40801149,3403.8,3403.3,0.2014283]
[1719762745121,0.849,3403.9,3403.2,2.3675]
[1719762745308,0.849,3404.0,3403.4,0.20143997]
[1719762745605,0.849,3404.0,3403.3,0.4158839]
[1719762745606,0.40789015,3403.9,3403.3,0.4158839]
[1719762745971,0.40793442,3403.9,3403.4,0.20136994]
[1719762746167,0.849,3404.0,3403.3,0.4158839]
[1719762746417,0.849,3404.0,3403.5,0.20136454]
[1719762746574,0.849,3404.0,3403.4,0.48558458]
[1719762746773,0.849,3404.0,3403.6,0.20135913]
[1719762747089,0.849,3404.0,3403.7,0.20135373]
[1719762747284,0.849,3404.0,3403.3,0.4158839]
[1719762747489,3.0,3404.2,3403.8,0.20134833]
[1719762747690,0.849,3404.0,3403.2,2.3675]
[1719762747886,3.0,3404.2,3403.3,0.20137534]
[1719762748210,0.849,3404.0,3403.3,0.63739678]
[1719762748517,0.849,3404.0,3403.4,2.2766]
[1719762748817,0.849,3404.0,3403.4,2.47796994]
[1719762751108,0.40803216,3403.9,3403.4,2.47796994]
[1719762751775,0.849,3403.8,3403.4,0.20136994]
[1719762751979,0.849,3403.8,3403.2,2.3173]
[1719762752284,0.849,3403.8,3403.2,2.63738765]
[1719762752504,0.849,3403.7,3403.3,0.20137022]
[1719762752673,0.849,3403.7,3403.2,2.63738765]
[1719762752891,0.849,3403.7,3403.3,0.20137022]
[1719762753073,0.849,3403.7,3403.2,2.63738765]
[1719762753414,0.849,3403.7,3403.3,0.55346663]
[1719762754413,2.4667,3403.9,3403.3,0.55346663]
[1719762754715,0.849,3403.6,3403.3,0.55346663]
[1719762763327,0.849,3403.6,3403.3,0.20137022]
[1719762763501,0.849,3403.6,3403.0,3.20087649]
[1719762763700,0.849,3403.6,3403.4,0.20137165]
[1719762764023,0.849,3403.8,3403.0,3.20087649]
[1719762764490,0.849,3403.8,3403.1,0.20138786]
[1719762764693,0.849,3403.8,3403.1,0.6265143]
[1719762767526,0.849,3404.0,3403.2,2.2536]
[1719762767825,0.40804591,3403.9,3403.2,2.45499953]
[1719762768130,0.849,3404.0,3403.2,2.45499953]
[1719762768427,0.849,3404.0,3403.4,2.2536]
[1719762768726,3.0,3404.2,3403.5,0.26014688]
[1719762768933,3.0,3404.3,3403.7,2.2536]
[1719762769222,7.33,3404.7,3403.7,2.2536]
[1719762769223,0.849,3404.5,3403.7,2.2536]
[1719762769435,0.40770534,3404.4,3403.7,2.2536]
[1719762769727,0.40770534,3404.4,3403.8,0.20133295]
[1719762769928,0.849,3404.5,3403.8,0.20133295]
[1719762770127,0.40767855,3404.4,3403.8,0.20133295]
[1719762770514,0.40769843,3404.4,3403.9,2.2536]
[1719762770714,1.25669843,3404.5,3404.0,0.20125555]
[1719762770914,1.19059024,3404.5,3404.0,0.20125555]
[1719762774954,1.19059024,3404.5,3403.9,2.2536]
[1719762775133,0.849,3404.5,3403.9,2.2536]
[1719762781821,3.0,3404.9,3403.9,2.2536]
[1719762782007,0.849,3404.6,3403.9,2.2536]
[1719762783152,0.849,3404.7,3403.9,2.2536]
[1719762783363,0.849,3404.7,3403.9,2.56973552]
[1719762783540,0.849,3404.7,3404.0,0.20117358]
[1719762783857,0.849,3404.7,3404.1,2.3964]
[1719762784252,0.849,3404.7,3404.2,0.20116278]
[1719762784615,0.849,3404.5,3404.1,2.3964]
[1719762784823,3.0,3405.0,3404.3,0.20115738]
[1719762784824,0.849,3404.7,3404.3,0.20115738]
[1719762785049,0.849,3404.7,3404.1,2.3964]
[1719762785321,0.849,3404.7,3404.4,0.20115198]
[1719762785632,0.849,3404.7,3404.5,0.20114658]
[1719762785829,0.849,3404.7,3404.1,2.3964]
[1719762786035,0.849,3404.7,3404.6,0.20114118]
[1719762786362,0.849,3404.7,3404.1,2.3964]
[1719762786542,0.849,3404.7,3404.6,0.20114118]
[1719762786857,0.849,3404.7,3404.1,2.3964]
[1719762787059,3.0,3405.0,3404.6,0.20114118]
[1719762787263,0.849,3404.8,3404.1,2.4551466]
[1719762787443,0.849,3404.8,3404.1,2.7796866]
[1719762787970,0.849,3404.6,3404.1,2.72094]
[1719762788252,0.849,3404.6,3404.2,0.20116278]
[1719762788620,0.849,3404.6,3404.1,2.3964]
[1719762788950,0.849,3404.6,3404.3,0.20115738]
[1719762789205,0.849,3404.6,3404.2,0.20116278]
[1719762789370,0.849,3404.6,3404.2,0.46091906]
[1719762789521,0.849,3404.6,3404.3,0.20115738]
[1719762789719,0.849,3404.6,3404.2,0.25975628]
[1719762789921,0.849,3404.6,3404.3,0.20115738]
[1719762790149,0.849,3404.6,3404.2,0.25975628]
[1719762790458,0.849,3404.6,3404.4,0.20115198]
[1719762790643,0.849,3404.6,3404.3,0.46677301]
[1719762790833,0.849,3404.6,3404.5,0.20114658]
[1719762791028,0.849,3404.6,3404.3,0.26561563]
[1719762791228,0.849,3404.6,3404.5,0.20114658]
[1719762791423,0.849,3404.6,3404.3,0.26561563]
[1719762791628,0.849,3404.6,3404.5,0.20114658]
[1719762791828,0.849,3404.6,3404.3,0.26561563]
[1719762792024,0.849,3404.6,3404.5,0.20114658]
[1719762792231,0.849,3404.6,3404.3,0.26561563]
[1719762792571,0.849,3404.6,3404.4,0.20115198]
[1719762795042,0.849,3404.6,3404.1,2.3964]
[1719762795230,0.849,3404.6,3404.5,0.20110391]
[1719762795468,0.849,3404.6,3404.1,2.3964]
[1719762795770,0.849,3404.6,3404.5,0.20110391]
[1719762795923,0.849,3404.6,3404.1,2.3964]
[1719762796333,0.849,3404.6,3404.2,0.20112011]
[1719762796631,0.849,3404.6,3404.2,0.25975201]
[1719762796854,0.849,3404.6,3404.3,0.20093541]
[1719762797054,0.849,3404.6,3404.2,0.25975201]
[1719762797364,0.849,3404.6,3404.4,0.20093001]
[1719762797736,0.849,3404.6,3404.2,0.25975201]
[1719762797931,0.849,3404.6,3404.5,0.20092461]
[1719762798131,0.849,3404.6,3404.1,2.3964]
[1719762798348,0.849,3404.6,3404.5,0.20092461]
[1719762798889,0.849,3404.6,3404.1,2.3964]
[1719762799263,0.849,3404.6,3404.2,0.20094081]
[1719762799650,0.849,3404.6,3404.1,2.3964]
[1719762799980,0.849,3404.6,3404.3,0.20093541]
[1719762800210,0.849,3404.6,3404.2,0.20094081]
[1719762800550,0.849,3404.6,3404.3,0.20093541]
[1719762800758,0.849,3404.6,3404.1,2.3964]
[1719762801213,0.849,3404.6,3404.2,0.20094081]
[1719762801406,0.849,3404.6,3404.1,2.3964]
[1719762801899,0.849,3404.6,3404.2,0.20094081]
[1719762802395,0.849,3404.6,3404.1,2.3964]
[1719762802552,0.849,3404.6,3404.2,0.20094081]
[1719762803062,0.849,3404.6,3404.1,2.3964]
[1719762803387,0.849,3404.6,3404.2,0.20094081]
[1719762803753,3.849,3404.6,3403.9,2.3403]
[1719762804002,3.849,3404.6,3404.3,0.20093541]
[1719762804180,3.849,3404.6,3404.4,0.20093001]
[1719762804583,3.849,3404.6,3403.9,2.3403]
[1719762804786,3.849,3404.6,3404.0,0.45523973]
[1719762809599,3.0,3404.6,3404.0,0.45523973]
[1719762809779,3.1479,3404.7,3404.0,0.45523973]
[1719762809980,3.0,3404.6,3404.0,0.45523973]
[1719762810180,3.0,3404.6,3404.1,0.27955397]
[1719762810387,3.0,3404.6,3404.2,0.20094424]
[1719762810775,3.0,3404.6,3404.1,0.27955397]
[1719762810986,3.0,3404.6,3404.3,0.20093884]
[1719762811185,3.0,3404.6,3404.4,0.20093344]
[1719762811382,3.0,3404.6,3404.1,0.27955397]
[1719762811606,3.0,3404.6,3404.2,0.20094424]
[1719762811810,3.0,3404.6,3404.1,0.27955397]
[1719762811996,0.40758134,3404.5,3404.1,0.27955397]
[1719762812203,0.40758134,3404.5,3404.2,0.20094424]
[1719762812417,0.40758134,3404.5,3404.1,0.27955397]
[1719762812737,0.40758134,3404.5,3404.2,0.20094424]
[1719762813027,0.40758134,3404.5,3404.1,0.27955397]
[1719762813193,0.40758134,3404.5,3404.2,0.20094424]
[1719762813517,0.40758134,3404.5,3404.1,0.27955397]
[1719762813727,0.40758134,3404.5,3404.3,0.20093884]
[1719762813887,0.40758134,3404.5,3404.2,0.20094424]
[1719762814084,0.40757654,3404.5,3404.4,0.20093344]
[1719762814311,0.40757654,3404.5,3404.3,0.20093884]
[1719762814510,3.0,3404.6,3404.4,0.20093344]
[1719762814713,0.40753761,3404.5,3404.4,0.20093344]
[1719762814950,0.40753761,3404.5,3403.9,2.3403]
[1719762815248,3.0,3404.6,3404.0,7.12233638]
[1719762815451,0.849,3404.9,3404.2,2.3392]
[1719762815651,0.40731764,3404.8,3404.3,0.20093884]
[1719762815849,0.40731764,3404.8,3404.2,2.3392]
[1719762816055,0.40731764,3404.8,3404.3,0.20093884]
[1719762816223,0.40731764,3404.8,3404.2,2.3392]
[1719762816639,0.40731764,3404.8,3404.3,0.20093884]
[1719762816836,0.40731764,3404.8,3404.2,2.3392]
[1719762817043,0.40731764,3404.8,3404.3,0.20093884]
[1719762817346,0.40731764,3404.8,3404.2,3.27947881]
[1719762817554,0.40731764,3404.8,3404.4,0.20093344]
[1719762817755,0.40731764,3404.8,3404.3,0.20093884]
[1719762817943,0.40731764,3404.8,3404.5,0.20092804]
[1719762818144,0.40731764,3404.8,3404.4,0.20093344]
[1719762818339,0.40731764,3404.8,3404.6,0.20092264]
[1719762818547,1.25631764,3404.9,3404.5,0.20092804]